Cogmind - Beta 13 @@@ ROGUE MODE // 2024.06.22 @ 06:34:22 Player: N00Bk1llr Result: Destroyed by G-50 Soldier with Heavy Laser Performance ------------- Evolutions (2) 1000 Regions Visited (9) 1800 Robots Destroyed (147) 735 Value Destroyed (4171) 4171 Prototype IDs (12) 240 Alien Tech Used (0) 0 Bonus (2185) 2185 TOTAL SCORE: 10131 Bonus ------- Triggered High Security 500 High Alert Combat Kills 1017 Follower Combat Kills 117 Entered Garrisons 200 Used RIF Installer 500 Friendly Fire -149 Cogmind --------- Core Integrity 0/550 Matter 300/300 Energy 80/100 System Corruption 0% Temperature Cool (98) Movement Core (1350) Ox26 Location -8/Materials Parts ------- > --- POWER (1) -------- (None) > --- PROPULSION (3) --- (None) > --- UTILITY (4) ------ Huge Storage Unit > --- WEAPON (3) ------- (None) > --- INVENTORY (25) --- Improved Ion Engine Reinforced Ion Engine Reinforced Fission Core Reinforced Quantum Reactor Light Treads Experimental Heat Sink High-capacity Matter Pod (200) Seismic Detector Advanced Weapon Cycler Advanced Transmission Jammer Improved Shield Generator Improved Shield Generator Improved Shield Generator Hacking Suite Relay Coupler [Grunt] (23) Relay Coupler [Grunt] (28) Relay Coupler [Sentry] (17) High-powered Tractor Beam Dispersion Rifle Heavy Ion Cannon Heavy Ion Cannon Heavy Ion Cannon Improved Light Cannon Plasma Cutter Peak State ------------ > --- POWER ------------ Deuterium Engine > --- PROPULSION ------- Light Treads Light Treads Light Treads > --- UTILITY ---------- Huge Storage Unit Experimental Targeting Computer Advanced Weapon Cycler Advanced Powered Armor > --- WEAPON ----------- AWS/EX-DEC 8R-AWN's Boregun > --- INVENTORY -------- Improved Ion Engine Reinforced Ion Engine Reinforced Fission Core Reinforced Quantum Reactor Light Treads Light Treads Experimental Heat Sink High-capacity Matter Pod Seismic Detector Improved Targeting Computer Advanced Transmission Jammer Makeshift Light Armor Plating Hacking Suite High-powered Tractor Beam Dispersion Rifle Heavy Assault Rifle Improved Light Cannon Plasma Cutter [Rating: 65] Favorites ----------- Power Deuterium Engine Engine Deuterium Engine Propulsion Light Treads Treads Light Treads Leg Aluminum Leg Flight Unit Improved VTOL Module Utility Huge Storage Unit Device Improved Shield Generator Storage Huge Storage Unit Processor Experimental Targeting Computer Protection Hardened Light Armor Plating Weapon Improved Assault Rifle Energy Gun AWS/EX-DEC Ballistic Gun Improved Assault Rifle Ballistic Cannon Improved Light Cannon Launcher Rocket Launcher Special Weapon Plasma Cutter Build | -11 -10 -10 -9 -9 -9 -8 -8 -8 -8 ------- Run | Yrd Mat Min Mat Min Exi Min Mat Gar Mat Slots Evolved 4 | . . . 2 . . . 2 . . Power . | . . . . . . . . . . Propulsion 1 | . . . . . . . 1 . . Utility 2 | . . . 1 . . . 1 . . Weapon 1 | . . . 1 . . . . . . Parts Attached 97 | 6 11 2 21 1 29 6 6 13 2 Power 6 | . 1 . 1 1 1 1 1 . . Engine 6 | . 1 . 1 1 1 1 1 . . Core . | . . . . . . . . . . Reactor . | . . . . . . . . . . Propulsion 23 | 5 1 . 7 . 4 2 1 2 1 Treads 18 | 3 1 . 5 . 3 2 1 2 1 Leg 3 | 2 . . . . 1 . . . . Wheel . | . . . . . . . . . . Hover . | . . . . . . . . . . Flight 2 | . . . 2 . . . . . . Utility 21 | . 3 . 7 . 5 . 1 4 1 Device 9 | . . . 2 . 3 . . 4 . Storage 2 | . 1 . 1 . . . . . . Processor 1 | . . . . . 1 . . . . Hackware . | . . . . . . . . . . Protection 9 | . 2 . 4 . 1 . 1 . 1 Artifact . | . . . . . . . . . . Weapon 47 | 1 6 2 6 . 19 3 3 7 . Energy Gun 4 | 1 . . . . 1 . 1 1 . Energy Cannon . | . . . . . . . . . . Ballistic Gun 27 | . 3 1 3 . 14 2 2 2 . Ballistic Cannon 4 | . . . 2 . . . . 2 . Launcher 10 | . 3 1 1 . 3 1 . 1 . Special Weapon 2 | . . . . . 1 . . 1 . Impact Weapon . | . . . . . . . . . . Slashing Weapon . | . . . . . . . . . . Piercing Weapon . | . . . . . . . . . . Special Melee Weapon . | . . . . . . . . . . Unidentified Prototypes 8 | . . . 2 . 5 . 1 . . Parts Lost 29 | . 3 . . . 9 5 . 3 9 Power 5 | . 1 . . . 1 2 . . 1 Propulsion 8 | . 1 . . . 2 2 . . 3 Utility 6 | . . . . . 3 . . . 3 Weapon 10 | . 1 . . . 3 1 . 3 2 Highest Loss Streak 9 | . 2 . . . 9 3 . 3 8 To Critical Strikes 5 | . . . . . 5 . . . . Average Slot Usage (%) 95 | . 95 100 99 100 98 87 98 90 86 Engine 10 | . 13 14 11 11 10 2 7 9 8 Treads 24 | . 27 28 21 22 22 21 27 27 25 Device 9 | . . . 8 . 7 11 9 13 14 Storage 10 | . 14 14 11 11 11 11 9 9 9 Processor 5 | . . . . . 7 11 9 9 8 Protection 8 | . 9 14 13 22 5 . 9 4 2 Energy Gun 3 | . 4 . . . . . . 8 7 Ballistic Gun 15 | . 15 28 21 22 31 29 26 . . Ballistic Cannon 5 | . . . 10 . . . . 8 8 Launcher 2 | . 7 . 1 11 1 . . . . Naked Turns . | . . . . . . . . . . Heaviest Build 127 | 12 32 31 105 105 105 100 120 127 127 Greatest Support 60 | 40 40 40 46 46 46 40 60 60 60 Greatest Overweight (x) 31 | 1 . . 2 2 2 2 1 2 31 Average Overweight (x) 1 | . . . 1 2 2 2 1 1 1 Largest Inventory Capacity 25 | 8 15 15 25 25 25 25 25 25 25 Average Capacity 22 | 8 13 15 20 25 25 25 25 25 25 Most Carried 25 | 6 15 15 25 25 25 23 21 25 25 Average Carried 21 | 4 10 15 19 25 22 20 18 24 24 Final Capacity 25 | 8 15 15 25 25 25 25 25 25 25 Final Carried 25 | 6 15 15 25 25 23 21 20 25 24 Class Distribution -------------------- 38% | Scavenger-Gunner 37% | Tank 14% | Scavenger-Tank 7% | Mutant Dominant Class ---------------- Mutant | -10/Materials Mutant | -10/Mines Tank | -9/Materials Tank | -9/Mines Scavenger-Gunner | -9/Exiles Scavenger-Gunner | -8/Mines Scavenger-Gunner | -8/Materials Scavenger-Gunner | -8/Garrison Scavenger-Gunner | -8/Materials Resources | -11 -10 -10 -9 -9 -9 -8 -8 -8 -8 ----------- Run | Yrd Mat Min Mat Min Exi Min Mat Gar Mat Matter Collected 4874 | 269 401 109 912 131 761 480 444 910 457 Remotely . | . . . . . . . . . . Salvage Created 5307 | 119 601 238 1092 178 180 326 444 884 1245 Parts 294 | 5 52 10 58 14 36 11 20 34 54 Haulers Intercepted 6 | . 2 . 4 . . . . . . Recyclers Shooed 4 | . . 1 2 . . . 1 . . Parts Field Recycled . | . . . . . . . . . . Retrieved Matter . | . . . . . . . . . . Parts Self-Destructed . | . . . . . . . . . . Prevented . | . . . . . . . . . . Kills | -11 -10 -10 -9 -9 -9 -8 -8 -8 -8 ------- Run | Yrd Mat Min Mat Min Exi Min Mat Gar Mat Combat Hostiles Destroyed 89 | . 14 5 12 9 3 6 2 19 19 Guns 51 | . 6 2 9 4 2 4 2 13 9 Cannons 16 | . . . 3 . . . . 4 9 AOE 20 | . 8 3 . 5 1 2 . 1 . Classes Destroyed 17 | 2 8 . 2 . 3 . . 1 1 Worker 9 | . 4 . 5 . . . . . . Builder 7 | . 4 . . . . 1 1 . 1 Tunneler 2 | 1 . . 1 . . . . . . Hauler 6 | . 2 . 4 . . . . . . Recycler 16 | 1 2 2 4 1 . 1 3 . 2 Mechanic 2 | . 1 . 1 . . . . . . Operator 3 | . 1 . 1 . . . 1 . . Turret 1 | . . . . . 1 . . . . Watcher 7 | . 2 . 1 . . . 1 . 3 Swarmer 23 | . 6 3 3 6 . 2 . 3 . Grunt 44 | . 8 2 5 3 . 3 . 12 11 Brawler 3 | . . . 1 . . . . . 2 Duelist 2 | . . . . . . . . . 2 Sentry 12 | . . . 3 . . . 2 4 3 Hunter 1 | . . . . . . . . . 1 Zionite 4 | . . . . . 4 . . . . Assembled 2 | . . . . . 2 . . . . Guerrilla 1 | . . . . . . . . 1 . Best Kill Streak 9 | 2 9 7 5 4 4 3 5 6 7 Combat Bots Only 6 | . 5 5 4 3 2 3 2 6 6 Max Kills in Single Turn 4 | 1 3 4 2 3 3 1 1 2 2 Gunslinging . | . . . . . . . . . . Exploded 3 | . 2 3 . 2 1 1 . 1 . Melee . | . . . . . . . . . . Uniques/NPCs Destroyed 5 | . . . . . 4 1 . . . 8R-AWN (-9/Exiles) EX-DEC (-9/Exiles) EX-HEX (-9/Exiles) EX-BIN (-9/Exiles) 7V-RTL (-8/Mines) Combat | -11 -10 -10 -9 -9 -9 -8 -8 -8 -8 -------- Run | Yrd Mat Min Mat Min Exi Min Mat Gar Mat Hostile Shots Fired 522 | . 55 14 26 29 76 60 3 54 205 Missed 148 | . 25 3 8 8 10 11 . 13 70 Damage Taken 6003 | 36 514 142 198 199 1123 1017 40 715 2019 Core 910 | 18 77 14 . 33 94 119 . 31 524 Absorbed by Shields 404 | . . . 62 . 62 . . 45 235 Regen/Repaired (Parts) 322 | . . . 58 . . . . . 264 Core Remaining (%) 62 | 92 . 56 . . . 38 . . . Volleys Fired 412 | 3 48 10 51 13 58 48 18 114 49 Largest 3 | 2 2 2 3 3 3 3 3 3 1 Hottest 101 | 60 70 40 101 79 83 83 83 86 57 Shots Fired 822 | 6 88 19 149 27 138 90 54 162 89 Gun 565 | 6 63 18 94 22 120 88 54 60 40 Cannon 201 | . . . 53 . . . . 99 49 Launcher 56 | . 25 1 2 5 18 2 . 3 . Special . | . . . . . . . . . . Kinetic 660 | 3 40 18 147 22 120 88 54 119 49 Thermal . | . . . . . . . . . . Explosive 56 | . 25 1 2 5 18 2 . 3 . Electromagnetic 106 | 3 23 . . . . . . 40 40 Robot Hit Streak 34 | 5 8 12 27 2 14 34 7 22 20 Robot Miss Streak 4 | . 3 1 4 4 2 2 3 3 3 Penetration Max 1 | . . . . . 1 1 . . 1 Secondary Targets 2 | . . 1 . . . 1 . . . Max Gunslinging Chain 1 | . . 1 . . . 1 . . . Autonomous 81 | . . . . . . . . 40 41 Shots Hit Robots 490 | 5 51 16 93 8 92 74 28 63 60 Core Hits 256 | 2 42 13 36 11 35 27 13 35 42 Critical Kills 12 | . . . . . . 1 6 . 5 Critical Parts Destroyed 25 | . 1 . . . 2 11 5 . 6 Critical Strikes 45 | . 1 . 1 . 2 14 11 3 13 Destroy 40 | . 1 . . . 2 14 11 . 12 Blast 4 | . . . 1 . . . . 3 . Corrupt 1 | . . . . . . . . . 1 Melee Attacks . | . . . . . . . . . . Impact . | . . . . . . . . . . Slashing . | . . . . . . . . . . Piercing . | . . . . . . . . . . Sneak Attacks . | . . . . . . . . . . Combat Hostiles . | . . . . . . . . . . Follow-up Attacks . | . . . . . . . . . . Damage Inflicted 12270 | 90 1891 385 1657 630 2174 1434 478 1752 1779 Guns 7320 | 67 491 154 1004 108 1444 1230 478 1163 1181 Cannons 1490 | . . . 653 . . . . 239 598 Explosions 3363 | 23 1383 231 . 510 662 204 . 350 . Melee . | . . . . . . . . . . Ramming 97 | . 17 . . 12 68 . . . . Kinetic 6356 | 24 236 154 1657 108 1444 1230 478 427 598 Thermal 23 | 23 . . . . . . . . . Explosive 3340 | . 1383 231 . 510 662 204 . 350 . Electromagnetic 2454 | 43 255 . . . . . . 975 1181 Impact . | . . . . . . . . . . Slashing . | . . . . . . . . . . Piercing . | . . . . . . . . . . Highest Corruption 1 | . 1 1 . . . . . . . Average Corruption 1 | . 1 1 . . . . . . . Corruption Purged . | . . . . . . . . . . Corruption Blocked . | . . . . . . . . . . Effects 6 | . 6 . . . . . . . . Message Errors 1 | . 1 . . . . . . . . Matter Fused 2 | . 2 . . . . . . . . Heat Flow Errors 1 | . 1 . . . . . . . . Energy Discharges 1 | . 1 . . . . . . . . Data Loss (major) 1 | . 1 . . . . . . . . Overload Shots . | . . . . . . . . . . Overflow Damage 120 | . 6 10 6 36 12 20 . . 30 Projectiles 36 | . . . 6 . . . . . 30 Explosions 72 | . 6 10 . 36 . 20 . . . Melee 12 | . . . . . 12 . . . . Knockbacks 14 | . . . 5 . 1 . . 3 5 Impact 1 | . . . . . 1 . . . . Kinetic 13 | . . . 5 . . . . 3 5 Secondary . | . . . . . . . . . . Self-Inflicted Damage 241 | 37 159 . . . . 45 . . . Shots 10 | 1 8 . . . . 1 . . . Rammed 21 | . 2 . . 1 18 . . . . Targets Rammed 25 | . 3 . . 1 21 . . . . Kicked . | . . . . . . . . . . Crushed 4 | . 1 . . . 3 . . . . Highest Temperature 410 | 12 254 28 180 150 211 247 410 193 234 Average Temperature 61 | 12 46 13 51 36 97 118 75 32 63 Received Heat Transfer 2166 | . 153 69 65 57 20 297 18 351 1136 Effects 4 | . . . . . 1 . 1 . 2 Energy Bleed 2 | . . . . . . . . . 2 Interference 1 | . . . . . 1 . . . . Damage (minor) 1 | . . . . . . . 1 . . Siege Activations . | . . . . . . . . . . Robots Corrupted 2 | . . . . . . . . 1 1 Combat Hostiles 2 | . . . . . . . . 1 1 Parts Fried 17 | . 1 . . . 6 . . 3 7 Impact Corruptions 13 | . . . . . 13 . . . . Robots Melted . | . . . . . . . . . . Combat Hostiles . | . . . . . . . . . . Parts Melted . | . . . . . . . . . . Heat Transferred 50 | 50 . . . . . . . . . Parts Sabotaged . | . . . . . . . . . . Parts Stolen . | . . . . . . . . . . Parts Stripped . | . . . . . . . . . . Power Chain Reactions 1 | 1 . . . . . . . . . Alert | -11 -10 -10 -9 -9 -9 -8 -8 -8 -8 ------- Run | Yrd Mat Min Mat Min Exi Min Mat Gar Mat Peak Influence 3195 | 10 383 269 245 199 . 182 267 3195 2155 Initial 1557 | . 6 117 104 49 . . 64 43 1557 Average 754 | 7 207 201 127 55 . 132 158 1471 1850 Maximum Alert Level 5 | . 1 1 1 . . . 1 5 5 Low Security (%) 47 | 100 33 58 86 100 . 100 71 7 . Level 1 15 | . 66 41 13 . . . 28 14 . Level 2 3 | . . . . . . . . 8 . Level 3 4 | . . . . . . . . 12 . Level 4 6 | . . . . . . . . 14 13 Level 5 19 | . . . . . . . . 43 46 High Security 2 | . . . . . . . . . 40 Max Security . | . . . . . . . . . . Squads Dispatched 17 | . 2 . 2 . . . . . 13 Investigation 3 | . 2 . . . . . . . 1 Extermination . | . . . . . . . . . . Reinforcement 2 | . . . 2 . . . . . . Assault 10 | . . . . . . . . . 10 Garrison 2 | . . . . . . . . . 2 Intercept . | . . . . . . . . . . Searches Triggered . | . . . . . . . . . . Construction Impeded . | . . . . . . . . . . Haulers Reinforced . | . . . . . . . . . . Active Scanning Responses . | . . . . . . . . . . Cargo Convoy Interrupts . | . . . . . . . . . . Stealth | -11 -10 -10 -9 -9 -9 -8 -8 -8 -8 --------- Run | Yrd Mat Min Mat Min Exi Min Mat Gar Mat Distress Signals 10 | . 2 . 5 . . . . . 3 Communications Jammed . | . . . . . . . . . . Distress Signals . | . . . . . . . . . . Times Spotted 197 | . 16 5 16 9 47 8 9 20 67 Peak Tracking Total 31 | . 5 3 4 3 9 5 3 6 31 Tactical Retreats 22 | . . . . . 18 . . . 4 Traps | -11 -10 -10 -9 -9 -9 -8 -8 -8 -8 ------- Run | Yrd Mat Min Mat Min Exi Min Mat Gar Mat Traps Triggered 15 | . 2 . 1 . . . . 11 1 Indirectly . | . . . . . . . . . . Trap Hack Attempts . | . . . . . . . . . . Triggered . | . . . . . . . . . . Disarmed 6 | . . . 6 . . . . . . Reprogrammed . | . . . . . . . . . . Reused . | . . . . . . . . . . Traps Extracted . | . . . . . . . . . . Installed . | . . . . . . . . . . Triggered . | . . . . . . . . . . Machines | -11 -10 -10 -9 -9 -9 -8 -8 -8 -8 ---------- Run | Yrd Mat Min Mat Min Exi Min Mat Gar Mat Machines Disabled 27 | . 2 1 . . 11 1 3 7 2 Max in Single Turn 5 | . 1 1 . . 5 1 2 1 1 Garrison Access 1 | . . . . . . . . . 1 Garrison Relay 4 | . . . . . . . . 4 . Machines Repaired . | . . . . . . . . . . Machines Dismantled 2 | . . . . . 1 . . 1 . Machines Sabotaged . | . . . . . . . . . . Overloaded Fab Kills . | . . . . . . . . . . Hacking | -11 -10 -10 -9 -9 -9 -8 -8 -8 -8 --------- Run | Yrd Mat Min Mat Min Exi Min Mat Gar Mat Machines Accessed 27 | . 6 . 11 . 1 . 4 4 1 Terminals 21 | . 5 . 9 . . . 3 4 . Fabricators . | . . . . . . . . . . Repair Stations 2 | . . . 1 . . . . . 1 Recycling Units 1 | . 1 . . . . . . . . Scanalyzers 1 | . . . 1 . . . . . . Garrison Access 1 | . . . . . . . 1 . . Total Hacks 78 | . 16 . 40 . 1 . 13 6 2 Successful 48 | . 9 . 27 . 1 . 7 2 2 Failed 30 | . 7 . 13 . . . 6 4 . Catastrophic 5 | . 2 . . . . . 1 2 . Database Lockouts . | . . . . . . . . . . Manual 47 | . 14 . 19 . 2 . 10 2 . Terminals 56 | . 14 . 24 . . . 12 6 . Fabricators . | . . . . . . . . . . Repair Stations 5 | . . . 3 . . . . . 2 Recycling Units 2 | . 2 . . . . . . . . Scanalyzers 13 | . . . 13 . . . . . . Garrison Access 1 | . . . . . . . 1 . . Terminal Hacks 24 | . 6 . 11 . 1 . 4 2 . Record 1 | . . . . . 1 . . . . Robot Analysis 1 | . 1 . . . . . . . . Prototype ID Bank 2 | . 1 . 1 . . . . . . Open Door 1 | . . . . . . . . 1 . Branch Access Points 1 | . . . 1 . . . . . . Terminal Index 2 | . 1 . 1 . . . . . . Alert Level 2 | . . . 1 . . . 1 . . Locate Traps 2 | . . . 2 . . . . . . Disarm Traps 1 | . . . 1 . . . . . . Hauler Manifests 4 | . 2 . 1 . . . 1 . . Registered Components 4 | . 1 . 1 . . . 2 . . Zone Layout 2 | . . . 2 . . . . . . Security Stations 1 | . . . . . . . . 1 . Fabricator Hacks . | . . . . . . . . . . Repair Station Hacks 4 | . . . 2 . . . . . 2 Scan Component 2 | . . . 1 . . . . . 1 Repair 2 | . . . 1 . . . . . 1 Recycling Unit Hacks . | . . . . . . . . . . Scanalyzer 12 | . . . 12 . . . . . . Insert Component 6 | . . . 6 . . . . . . Analyze 6 | . . . 6 . . . . . . Garrison Access Hacks 1 | . . . . . . . 1 . . Unlock Access 1 | . . . . . . . 1 . . Unauthorized Hacks 7 | . 3 . 2 . . . 2 . . Terminals 6 | . 2 . 2 . . . 2 . . Botnet 6 | . 2 . 2 . . . 2 . . Fabricators . | . . . . . . . . . . Repair Stations . | . . . . . . . . . . Recycling Units 1 | . 1 . . . . . . . . Tunnel 1 | . 1 . . . . . . . . Scanalyzers . | . . . . . . . . . . Garrison Access . | . . . . . . . . . . Data Cores Recovered 2 | . . . 1 . . . 1 . . Used . | . . . . . . . . . . Hacking Detections 19 | . 5 . 9 . . . 3 2 . Full Trace Events 1 | . 1 . . . . . . . . Feedback Events . | . . . . . . . . . . Feedback Blocked . | . . . . . . . . . . Robot Schematics Acquired . | . . . . . . . . . . Robots Built . | . . . . . . . . . . Authchips . | . . . . . . . . . . Time . | . . . . . . . . . . Total Robot Build Rating . | . . . . . . . . . . Part Schematics Acquired 6 | . . . 6 . . . . . . Parts Built . | . . . . . . . . . . Authchips . | . . . . . . . . . . Time . | . . . . . . . . . . Total Part Build Rating . | . . . . . . . . . . Parts Repaired 2 | . . . 1 . . . . . 1 Time 81 | . . . 13 . . . . . 68 Parts Recycled . | . . . . . . . . . . Recycled Matter . | . . . . . . . . . . Retrieved Matter . | . . . . . . . . . . Retrieved Components . | . . . . . . . . . . Parts Scanalyzed 6 | . . . 6 . . . . . . Part Schematics Acquired 6 | . . . 6 . . . . . . Parts Damaged 1 | . . . 1 . . . . . . Bothacking | -11 -10 -10 -9 -9 -9 -8 -8 -8 -8 ------------ Run | Yrd Mat Min Mat Min Exi Min Mat Gar Mat Used RIF Installer 1 | . . . . . . . . 1 . Robots Hacked . | . . . . . . . . . . Non-combat . | . . . . . . . . . . Combat . | . . . . . . . . . . Robot Hacks Applied . | . . . . . . . . . . Relay Couplers Released 16 | . . . . . . . . 14 2 Machine Destruction 16 | . . . . . . . . 14 2 Fabnet Peak Effective % . | . . . . . . . . . . Robots Rewired . | . . . . . . . . . . Allies Hacked . | . . . . . . . . . . Hacks Repelled . | . . . . . . . . . . Allies | -11 -10 -10 -9 -9 -9 -8 -8 -8 -8 -------- Run | Yrd Mat Min Mat Min Exi Min Mat Gar Mat Total Allies 2 | . . . . . . . . 2 . Largest Group 2 | . . . . . . . . 2 . Highest-Rated Group 59 | . . . . . . . . 59 . Highest-Rated Ally 39 | . . . . . . . . 39 . Total Orders . | . . . . . . . . . . Ally Attacks 42 | . . . . . . 25 . 17 . Total Damage 1667 | . . . . . . 1339 . 328 . Kills 5 | . . . . . . 1 . 4 . Allies Corrupted . | . . . . . . . . . . Allies Melted . | . . . . . . . . . . Turrets Deployed 1 | . . . . . . 1 . . . Intel | -11 -10 -10 -9 -9 -9 -8 -8 -8 -8 ------- Run | Yrd Mat Min Mat Min Exi Min Mat Gar Mat Robot Analysis Total 1 | . 1 . . . . . . . . Derelict Logs Recovered 2 | . . . . 2 . . . . . Drone Launches . | . . . . . . . . . . Drone Recoveries . | . . . . . . . . . . Exploration | -11 -10 -10 -9 -9 -9 -8 -8 -8 -8 ------------- Run | Yrd Mat Min Mat Min Exi Min Mat Gar Mat Turns Passed 15880 | 48 1000 63 3883 1543 2524 369 401 5340 709 Spaces Moved 5400 | 15 516 21 1349 469 682 83 145 1885 235 Core 1 | . . . . . . . . . 1 Treads 5395 | 11 516 21 1349 469 682 83 145 1885 234 Legs 4 | 4 . . . . . . . . . Wheels . | . . . . . . . . . . Hover . | . . . . . . . . . . Flight . | . . . . . . . . . . Fastest Speed 160 | 160 160 160 160 320 320 320 240 240 240 Average Speed 268 | 168 160 160 269 320 320 320 240 267 260 Slowest Speed 1600 | 190 160 160 320 320 320 320 240 320 1600 Overloaded Moves . | . . . . . . . . . . Propulsion Burnouts . | . . . . . . . . . . Robots Hopped . | . . . . . . . . . . Cave-ins Triggered . | . . . . . . . . . . Exploration Rate (%) 51 | 2 73 8 94 92 90 35 20 77 26 Regions Visited 9 Branch Regions 4 Pre-discovered Areas 1 | . 1 . . . . . . . . Known Exits Taken 2 | . . . 1 . . . 1 . . Unknown Exits Taken 6 | 1 1 1 . 1 1 1 . . . Scrap Searched 2 | . . . . 1 . 1 . . . Spaces Dug 50 | . . . 23 . 1 . . 24 2 Terrain Destroyed 397 | . 153 8 27 50 41 49 13 37 19 Melee . | . . . . . . . . . . Projectile 79 | . . . 4 . 2 15 12 27 19 AOE 315 | . 153 8 23 50 39 32 . 10 . Terrain Rammed . | . . . . . . . . . . Walls Destroyed . | . . . . . . . . . . Machines Disabled . | . . . . . . . . . . Actions | -11 -10 -10 -9 -9 -9 -8 -8 -8 -8 --------- Run | Yrd Mat Min Mat Min Exi Min Mat Gar Mat Total 6194 | 32 606 32 1499 486 875 143 173 2061 287 Wait 83 | . . . 19 2 52 . . 10 . Move 5391 | 14 515 20 1348 468 681 82 144 1884 235 Hop . | . . . . . . . . . . Pick Up 81 | 2 19 . 28 . 14 4 2 12 . Fast Attach 21 | 5 2 . 10 . 1 . 2 . 1 Attach 30 | . 3 . 1 . 14 5 3 3 1 Detach 9 | . . . . . 5 1 1 1 1 Swap 46 | 1 6 2 10 1 14 1 1 10 . Drop 69 | 7 10 . 32 1 9 2 2 6 . Fire 412 | 3 48 10 51 13 58 48 18 114 49 Melee . | . . . . . . . . . . Ram . | . . . . . . . . . . Kick . | . . . . . . . . . . Crush 25 | . 3 . . 1 21 . . . . Escape Stasis 18 | . . . . . . . . 18 . Rewire 2 | . . . . . 2 . . . . Trap . | . . . . . . . . . . Miscellaneous 7 | . . . . . 4 . . 3 . Route ------- -11/Scrapyard -10/Materials (discovered 3 exits: *Mat x2 / [*Min]) -10/Mines -9/Materials (discovered 5 exits: *Mat x3 / *Min x2) -9/Mines (discovered 3 exits: *Mat x2 / *Exi) -9/Exiles -8/Mines -8/Materials (discovered 2 exits: Fac / Gar) -8/Garrison (discovered 3 exits: *Mat x3) -8/Materials History --------- Turn | Location | Event 10 | -11/Scrapyard | Discovered new exit (range 1) 49 | -11/Scrapyard | Entered Materials 302 | -10/Materials | Build established: Mutant 318 | -10/Materials | Discovered new exit (range 14) 654 | -10/Materials | Discovered new exit (range 16) 867 | -10/Materials | Discovered new exit (range 14) 1049 | -10/Materials | Entered Mines 1086 | -10/Mines | Discovered new exit (range 14) 1112 | -10/Mines | Entered Materials 1112 | -9/Materials | Evolved 2 slots: Utility x1, Weapon x1 1483 | -9/Materials | Build established: Tank 1604 | -9/Materials | Repaired Lgt. Treads 1629 | -9/Materials | Discovered new exit (range 15) 1689 | -9/Materials | Identified exit to Mines 2000 | -9/Materials | Discovered new exit (range 16) 2471 | -9/Materials | Discovered new exit (range 8) 4410 | -9/Materials | Discovered new exit (range 4) 4995 | -9/Materials | Entered Mines 5036 | -9/Mines | Met a Derelict bent on vengeance 5311 | -9/Mines | Discovered new exit (range 10) 5747 | -9/Mines | Learned 2 Materials zone layouts 6192 | -9/Mines | Discovered new exit (range 5) 6416 | -9/Mines | Learned Materials trap positions 6522 | -9/Mines | Deemed a non-threat by the Exiles lab entrance 6525 | -9/Mines | Discovered new exit (range 5) 6538 | -9/Mines | Entered Exiles 6627 | -9/Exiles | Met 8R-AWN 6681 | -9/Exiles | Met EX-HEX 6806 | -9/Exiles | Met EX-DEC 6915 | -9/Exiles | Discovered new exit (range 12) 7002 | -9/Exiles | Attacked by the Exiles 7197 | -9/Exiles | Destroyed 8R-AWN 7204 | -9/Exiles | Found Prototype Ballistic Gun 7208 | -9/Exiles | Found Prototype Processor 7221 | -9/Exiles | Found Prototype Ballistic Gun 7225 | -9/Exiles | Lost 9 parts (1p2n3u3w) 7237 | -9/Exiles | Identified Exp. Targeting Computer 7254 | -9/Exiles | Identified 8R-AWN's Boregun (x2) 7553 | -9/Exiles | Build established: Scavenger-Gunner 7553 | -9/Exiles | Destroyed EX-DEC 7611 | -9/Exiles | Found Deploy-a-Sentry 7704 | -9/Exiles | Found Prototype Energy Gun 7704 | -9/Exiles | Identified AWS/EX-DEC 7948 | -9/Exiles | Destroyed EX-HEX 7967 | -9/Exiles | Destroyed EX-BIN 9062 | -9/Exiles | Left Exiles lab with Deploy-a-Sentry 9062 | -9/Exiles | Entered Mines 9149 | -8/Mines | 7V-RTL came to Exiles' defense 9155 | -8/Mines | DAS Turret deployed 9169 | -8/Mines | Core integrity fell below 50% 9217 | -8/Mines | Destroyed 7V-RTL 9230 | -8/Mines | Lost 3 parts (1p2n) 9252 | -8/Mines | Found Adv. Powered Armor 9389 | -8/Mines | Discovered new exit (range 14) 9431 | -8/Mines | Entered Materials 9431 | -8/Materials | Evolved 2 slots: Propulsion x1, Utility x1 9432 | -8/Materials | Identified exit to Factory 9433 | -8/Materials | Loaded intel: 22 trap records 9825 | -8/Materials | Identified exit to Garrison 9832 | -8/Materials | Entered Garrison 9928 | -8/Garrison | Triggered checkpoint 9976 | -8/Garrison | Triggered checkpoint 10022 | -8/Garrison | Lost 3 parts (3w) 10066 | -8/Garrison | Triggered checkpoint 10101 | -8/Garrison | Garrison Relay disabled 10193 | -8/Garrison | Discovered new exit (range 14) 10249 | -8/Garrison | Rescued a captive Derelict 10251 | -8/Garrison | Rescued a captive Derelict 10636 | -8/Garrison | Triggered checkpoint 10728 | -8/Garrison | Discovered new exit (range 12) 10826 | -8/Garrison | Build established: Scavenger-Tank 10974 | -8/Garrison | Triggered checkpoint 11039 | -8/Garrison | Garrison Relay disabled 11119 | -8/Garrison | Learned Materials security intel 11346 | -8/Garrison | Discovered new exit (range 8) 11410 | -8/Garrison | Triggered checkpoint 11459 | -8/Garrison | Garrison Relay disabled 11640 | -8/Garrison | Triggered checkpoint 11852 | -8/Garrison | Triggered checkpoint 11877 | -8/Garrison | Garrison Relay disabled 13043 | -8/Garrison | Build established: Scavenger-Gunner 15037 | -8/Garrison | Installed Relay Interface Framework 15172 | -8/Garrison | Entered Materials 15572 | -8/Materials | First assault squad dispatched 15596 | -8/Materials | High security lockdown imminent 15637 | -8/Materials | Repaired Adv. Powered Armor 15676 | -8/Materials | High security lockdown engaged 15877 | -8/Materials | Core integrity fell below 50% 15880 | -8/Materials | Core integrity fell below 20% 15881 | -8/Materials | Destroyed by G-50 Soldier with Heavy Laser Last Messages --------------- 15853_ B-36 Bruiser unfolds itself. 15853_ G-47 Trooper unfolds itself. 15853_ I-25 Savior unfolds itself. 15853_ Critical hit (Burn: +37). 15860_ Deuterium Engine destroyed. 15863_ Lgt. Treads destroyed. 15865_ Electrolysis Chamber disabled. 15865_ Lgt. Treads destroyed. 15867_ C-30 ARC bursts open, deploying its payload. 15867_ G-50 Soldier unfolds itself. 15867_ G-47 Trooper unfolds itself. 15867_ L-31 Rogue unfolds itself. 15867_ G-47 Trooper unfolds itself. 15867_ I-25 Savior unfolds itself. 15874_ Adv. Powered Armor destroyed. 15875_ Critical hit (Burn: +37). 15877_ M-28 Smith repairs G-47 Trooper. 15879_ Critical hit (Burn: +37). 15879_ Exp. Targeting Computer destroyed. 15880_ M-28 Smith repairs G-47 Trooper. Map ----- +----------------------------------------------------+ | ############## #*%=########?? | | % + # = #????? | | # !+% #????? | | # !!! =#[ #????? | | + !!! # #####????? | | ## ########### !! # #????????? | | ?# #?????????# # #????????? | | ?# #?????????########## #????????? | | ?# #??????????????????# #????????? | | ?# #??????????????????# #????????? | | ?# #??????????????????# #????????? | | ?# #??????????????????# #????????? | | ##+########???????????# #????????? | | # #???????????# #????????? | | # #???????????# #????????? | | # #???????????# #????????? | | # #???????????# #????????? | | # #???????????# #????????? | | # #???????????# #????????? | | # #???????????# #????????? | | # #???????????# #????????? | | #####+###########+##### ;????????? | | #????????? | | #????????? | | "" g #????????? | | ############+### % " i @#????????? | | ???????????????# "g gl#????????? | | ???????????????# gg #????????? | | ???????????????# g g g #????????? | | ??????????????## gg bg mg#????????? | | ??????????????+ i gg i#????????? | | ??????????????## g g g #????????? | | ???????????????##/##;#m%###????????? | | ???????????????# # %#??????????? | | #??????????????# #gb#??????????? | | #?? ??????##### # i#??????????? | | ### ????? ## # %#??????????? | | # #? ????# ## # "#??????????? | | "#??? ???# ## # #??????????? | | #????? ??# ## # #??????????? | | ########/### ## # #??????????? | | " ## ! # #??????????? | | #?# ## # #??????????? | | #?# """" ## # #?#########? | | ??# """ % ## # # * #? | | ### """" =%/#####/## # #? | | %==[ = =! = %* % " """ ??? | | *[% % /= ="%" # """""??? | | #%"# ##############/## + ! """""??? | | ?? #??????????????# # """""??? | +----------------------------------------------------+ Best States ------------- Heat Dissipation 31 Energy Generation 14 Energy Capacity 275 Matter Stores 300 Matter Capacity 300 Sight Range 16 Terrain Scan Density 10 Jamming Range 16 Armor Coverage 400 Weapon Cycling 25 Evasion (%) 40 Targeting Accuracy 12 Recoil Reduction 3 Trap Extractor Capacity 4 Item Schematics ----------------- Trap Extractor | -9/Materials | Scanalyzed Seismic Detector | -9/Materials | Scanalyzed Hpw. Tractor Beam | -9/Materials | Scanalyzed Rocket Launcher | -9/Materials | Scanalyzed Lgt. Treads | -9/Materials | Scanalyzed Lgt. Armor Plating | -9/Materials | Scanalyzed Robot Schematics ------------------ None Fabricated ------------ Nothing Alien Tech Used ----------------- None Achievements -------------- None Challenges ------------ None Game ------ Seed TimingSmallDeconstructor Manual? 0 Play Time 01:04:44 Cumulative 65.6 hours Start 2024.06.14 @ 18:30:18 End 2024.06.22 @ 06:34:22 Sessions 3 Manual Loads 0 Difficulty Rogue Special Mode None Game No. 114 Rogue 92 Adventurer 22 Explorer 0 Win Type - Total 1 Types 1/0/0/0/0/0/0/0/0 Lore% 43 Gallery% 57 Achievement% 48 Wizard Run 0 Options --------- Layout 0 ASCII 0 Keyboard 0 Movement Mouse Keybinds 0 Fullscreen 2 Font 18/SmallcapsGlow Map View 76x50 Zoom Use 0% Tactical HUD 1 Map Filters NONE Filters NONE Steam 1 RUN: 3a04f80c-26b3-45ed-bd63-aad2e62eb282